{"text_format":"1","workbook":"xlsx","n_sheets":4,"sheets":["ＪＶで入札参加→","別紙１－③ (ＪＶ用)","変更契約から紙契約希望→","別紙２（変更契約）"],"not_rendered":{"charts":0,"images":0,"macros":1,"external_links":0,"defined_names":2,"comments":2,"pivot_tables":0},"unopened":[],"bounds":{"document_bytes":16777216,"sheet_cells":100000,"rows_first":2000,"rows_last":500,"rows_between":2000,"halvings":0,"cell_chars":16384,"cell_head_chars":4096},"cells_cut":0,"cells_raw":0,"read":"whole","date_system":"1900"}

{"sheet":"ＪＶで入札参加→","index":0,"n_rows":10,"n_cols":1,"rows_kept":10,"cut":false,"hidden":false,"merged":[]}
[]
["共同企業体で入札参加する場合は"]
[]
["別紙１（当初契約）（ＪＶver）に"]
[]
["必要事項を入力後、ＰＤＦで保存の上"]
[]
["入札金額送信の際、内訳書と同時に"]
[]
["提出してください"]

{"sheet":"別紙１－③ (ＪＶ用)","index":1,"n_rows":54,"n_cols":46,"rows_kept":54,"cut":false,"hidden":false,"merged":[[16,7,16,10],[38,6,41,6],[38,7,39,8],[38,9,39,25],[40,7,41,8],[40,9,41,25],[28,9,29,25],[30,7,31,8],[30,9,31,25],[33,6,36,6],[33,7,34,8],[33,9,34,25],[35,7,36,8],[35,9,36,25],[43,0,47,1],[44,2,46,4],[44,5,44,9],[44,11,44,25],[45,5,45,9],[45,11,45,15],[45,17,45,25],[46,5,46,9],[46,11,46,14],[46,16,46,19],[46,21,46,23],[33,1,36,4],[38,1,41,4],[17,1,17,3],[17,7,17,25],[20,1,21,3],[20,27,21,36],[23,6,26,6],[23,7,24,8],[23,9,24,25],[25,7,26,8],[25,9,26,25],[23,1,26,4],[13,1,13,7],[13,8,13,26],[16,1,16,3],[10,15,10,25],[0,37,0,39],[1,29,2,30],[1,37,1,39],[4,29,5,30],[6,8,6,14],[6,15,6,25],[0,0,0,26],[7,29,8,30],[8,8,8,14],[8,15,8,25],[11,21,11,25],[9,8,9,14],[9,15,9,19],[9,21,9,25],[7,8,7,14],[7,15,7,25],[10,30,11,34],[10,28,11,29],[24,40,25,45],[27,40,28,46],[33,40,34,47],[30,40,31,45],[28,6,31,6],[28,7,29,8]]}
["契約に関する申出書",null,null,null,null,null,null,null,null,null,null,null,null,null,null,null,null,null,null,null,null,null,null,null,null,null,null,"はじめに選択↓",null,null,null,"契約区分",null,null,null,null,null,"入力箇所",null,null,null,null,null,null,"発注機関名","支出負担行為担当者名"]
[null,null,null,null,null,null,null,null,null,null,null,null,null,null,null,null,null,null,null,null,null,null,null,null,null,null,null,null,null,1,null,null,1,"工事",null,null,null,"選択箇所",null,null,null,null,null,10,"石狩振興局",{"$f":"AS2&\"長\"","v":"石狩振興局長"}]
[null,null,null,null,null,null,null,null,null,null,null,null,null,null,null,null,null,null,null,{"$f":"IF($AD$2=\"\",\"\",\"令和\")","v":"令和"},null,"年",null,"月",null,"日",null,null,null,null,null,null,2,"委託業務",null,null,null,null,null,null,null,null,null,11,"後志総合振興局",{"$f":"AS3&\"長\"","v":"後志総合振興局長"}]
[null,null,null,null,null,null,null,null,null,null,null,null,null,null,null,null,null,null,null,null,null,null,null,null,null,null,null,"次に選択↓",null,null,null,"発注機関",null,null,null,null,null,null,null,null,null,null,null,12,"檜山振興局","檜山振興局長"]
[null,{"$f":"IF(AD5=\"\",\"（支出負担行為担当者）\",VLOOKUP(AD5,$AR$2:$AT$15,3,1))&\"　様\"","v":"石狩振興局長　様"},null,null,null,null,null,null,null,null,null,null,null,null,null,null,null,null,null,null,null,null,null,null,null,null,null,null,null,10,null,null,null,null,null,null,null,null,null,null,null,null,null,13,"渡島総合振興局","渡島総合振興局長"]
[null,null,null,null,null,null,null,null,null,null,null,null,null,null,null,null,null,null,null,null,null,null,null,null,null,null,null,null,null,null,null,null,null,null,null,null,null,null,null,null,null,null,null,14,"胆振総合振興局","胆振総合振興局長"]
[null,null,null,null,null,null,null,null,{"$f":"IF(AD8=2,\"ＪＶ名\",\"\")","v":"ＪＶ名"},null,null,null,null,null,null,null,null,null,null,null,null,null,null,null,null,null,null,"次に選択↓",null,null,null,"契約形態",null,null,null,null,null,null,null,null,null,null,null,15,"日高振興局","日高振興局長"]
[null,null,null,null,null,null,null,null,"住所",null,null,null,null,null,null,null,null,null,null,null,null,null,null,null,null,null,null,null,null,2,null,null,null,null,null,null,null,null,null,null,null,null,null,16,"十勝総合振興局","十勝総合振興局長"]
[null,null,null,null,null,null,null,null,"商号又は名称",null,null,null,null,null,null,null,null,null,null,null,null,null,null,null,null,null,null,null,null,null,null,null,2,"ＪＶ",null,null,null,null,null,null,null,null,null,17,"釧路総合振興局","釧路総合振興局長"]
[null,null,null,null,null,null,null,null,"代表者役職・氏名",null,null,null,null,null,null,null,null,null,null,null,null,null,null,null,null,null,null,"最後に入力↓",null,null,null,null,null,null,null,null,null,null,null,null,null,null,null,18,"根室振興局","根室振興局長"]
[null,null,null,null,null,null,null,"代理人","住所",null,null,null,null,null,null,null,null,null,null,null,null,null,null,null,null,null,null,null,"開札日",null,null,null,null,null,null,null,null,null,null,null,null,null,null,19,"オホーツク総合振興局","オホーツク総合振興局長"]
[null,null,null,null,null,null,null,null,"氏名",null,null,null,null,null,null,null,null,null,null,null,null,null,null,null,null,null,null,null,null,null,null,null,null,null,null,null,null,null,null,null,null,null,null,20,"宗谷総合振興局","宗谷総合振興局長"]
[null,null,null,null,null,null,null,null,null,null,null,null,null,null,null,null,null,null,null,null,null,null,null,null,null,null,null,null,null,null,null,null,null,null,null,null,null,null,null,null,null,null,null,21,"留萌振興局","留萌振興局長"]
[null,{"$f":"AE11","v":"00:00:00"},null,null,null,null,null,null,{"$f":"\"に開札予定の次の\"&IF(AD2=1,AH2,AH3)&\"について、落札者となった\"","v":"に開札予定の次の工事について、落札者となった"},null,null,null,null,null,null,null,null,null,null,null,null,null,null,null,null,null,null,null,null,null,null,null,null,null,null,null,null,null,null,null,null,null,null,22,"空知総合振興局","空知総合振興局長"]
["場合の契約方法を、次のとおり申し出ます。",null,null,null,null,null,null,null,null,null,null,null,null,null,null,null,null,null,null,null,null,null,null,null,null,null,null,null,null,null,null,null,null,null,null,null,null,null,null,null,null,null,null,23,"上川総合振興局","上川総合振興局長"]
[null,null,null,null,null,null,null,null,null,null,null,null,null,null,null,null,null,null,null,null,null,null,null,null,null,null,null,null,null,null,null,null,null,null,null,null,null,null,null,null,"＜ファイル名用＞"]
["（",{"$f":"IF(AD2=1,\"工事番号\",\"業務番号\")","v":"工事番号"},null,null,"）",null,"（",null,null,null,null,"）",null,null,null,null,null,null,null,null,null,null,null,null,null,null,null,null,null,null,null,null,null,null,null,null,null,null,null,null,null,null,null,"発注機関",{"$f":"VLOOKUP(AT17,AR2:AS12,2,1)","v":"石狩振興局"},{"$f":"AD5","v":10}]
[null,{"$f":"IF(AD2=1,\"工事名\",\"業務名\")","v":"工事名"},null,null,null,null,null,null,null,null,null,null,null,null,null,null,null,null,null,null,null,null,null,null,null,null,null,"←案件名",null,null,null,null,null,null,null,null,null,null,null,null,null,null,null,"開札日",{"$f":"MONTH(AE11)&\"月\"&DAY(AE11)&\"日\"","v":"1月0日"}]
[null,null,null,null,null,null,null,null,null,null,null,null,null,null,null,null,null,null,null,null,null,null,null,null,null,null,null,null,null,null,null,null,null,null,null,null,null,null,null,null,null,null,null,"整理番号",{"$f":"H17","v":0}]
[null,null,null,null,null,null,null,null,null,null,null,null,null,null,null,null,null,null,null,null,null,null,null,null,null,null,null,null,null,null,null,null,null,null,null,null,null,null,null,null,null,null,null,"入札参加者名",{"$f":"IF(AD8=1,P9,P7)","v":0}]
[null,"契約方法\n等の申出",null,null,null,null,null,"紙での契約を希望します。",null,null,null,null,null,null,null,null,null,null,null,null,null,null,null,null,null,null,null,"←どちらかにチェックしてください",null,null,null,null,null,null,null,null,null,null,null,null,null,null,null,"タイトル","契約に関する申出書"]
[null,null,null,null,null,null,null,"電子契約を希望します。"]
[null,null,null,null,null,null,null,"なお、契約書送付先のメールアドレス等は、次のとおりです。"]
[null,"（代表者）",null,null,null,null,"締結\n権限者","氏名",null,null,null,null,null,null,null,null,null,null,null,null,null,null,null,null,null,null,null,null,null,null,null,null,null,null,null,null,null,null,null,null,"全ての入力内容を確認後、ＰＤＦに変換のうえ、"]
[null,null,null,null,null,null,null,null,null,null,null,null,null,null,null,null,null,null,null,null,null,null,null,null,null,null,null,null,null,null,null,null,null,null,null,null,null,null,null,null,"電子入札システムにて、入札金額等の送信時に、"]
[null,null,null,null,null,null,null,"メール\nアドレス"]
[null,null,null,null,null,null,null,null,null,null,null,null,null,null,null,null,null,null,null,null,null,null,null,null,null,null,null,null,null,null,null,null,null,null,null,null,null,null,null,null,{"$f":"IF(AD2=1,\"工事\",\"委託\")&\"費内訳書とともに添付し、提出してください。\"","v":"工事費内訳書とともに添付し、提出してください。"}]
[null,null,null,null,null,null,null,null,null,null,null,null,null,null,null,null,null,null,null,null,null,null,null,null,null,null,null,null,null,null,null,null,null,null,null,null,null,null,null,null,"（１案件につき１枚、添付してください。）"]
[null,null,null,null,null,null,"契約担当者","氏名"]
[null,null,null,null,null,null,null,null,null,null,null,null,null,null,null,null,null,null,null,null,null,null,null,null,null,null,null,null,null,null,null,null,null,null,null,null,null,null,null,null,"なお、←のＰＤＦ化をクリックすると、"]
[null,null,null,null,null,null,null,"メール\nアドレス",null,null,null,null,null,null,null,null,null,null,null,null,null,null,null,null,null,null,null,null,null,null,null,null,null,null,null,null,null,null,null,null,"このエクセルシートが保存されている場所と同じ場所に"]
[]
[null,null,null,null,null,null,null,null,null,null,null,null,null,null,null,null,null,null,null,null,null,null,null,null,null,null,null,null,null,null,null,null,null,null,null,null,null,null,null,null,"「発注機関名_開札日_整理番号_入札参加者名_契約に係る申出書」"]
[null,"（構成員1）",null,null,null,null,"締結\n権限者","氏名",null,null,null,null,null,null,null,null,null,null,null,null,null,null,null,null,null,null,null,null,null,null,null,null,null,null,null,null,null,null,null,null,"をファイル名としたこの様式が、ＰＤＦで保存されます。"]
[]
[null,null,null,null,null,null,null,"メール\nアドレス",null,null,null,null,null,null,null,null,null,null,null,null,null,null,null,null,null,null,null,null,null,null,null,null,null,null,null,null,null,null,null,null,"（ＰＤＦの保存範囲は、Ａ～Ｙ列までです。）"]
[]
[]
[null,"（構成員2）",null,null,null,null,"締結\n権限者","氏名"]
[]
[null,null,null,null,null,null,null,"メール\nアドレス"]
[]
[]
["連絡先"]
[null,null,"担当者",null,null,"（所属）"]
[null,null,null,null,null,"（職・氏名）",null,null,null,null,null,null,null,null,null,null,"・"]
[null,null,null,null,null,"（電話番号）",null,null,null,null,null,null,null,null,null,"－",null,null,null,null,"－"]
[]
[]
["（留意事項）"]
[null,"※",{"$f":"\"この申出書は、入札金額等の送信時に、\"&IF(AD2=1,\"工事\",\"委託\")&\"費内訳書と併せて提出してください。\"","v":"この申出書は、入札金額等の送信時に、工事費内訳書と併せて提出してください。"}]
[null,null,"なお、添付漏れの場合でも、入札書が無効となることはありませんが、落札者の決定後、"]
[null,null,"速やかに、契約締結続きを行う必要があるため、忘れずに提出してください。"]
[null,"※","紙参加の場合は、必要事項を記入の上、開札日に持参してください。"]

{"sheet":"変更契約から紙契約希望→","index":2,"n_rows":14,"n_cols":1,"rows_kept":14,"cut":false,"hidden":false,"merged":[]}
[]
["変更契約から「紙契約」を希望する"]
[]
["場合、別紙２（変更契約）を、直接"]
[]
["契約担当課へ提出してください。"]
[]
["なお、メールで提出される場合は、"]
[]
["行き違い等の防止のため、お手数"]
[]
["ですが、その旨、電話連絡をお願い"]
[]
["いたします。"]

{"sheet":"別紙２（変更契約）","index":3,"n_rows":30,"n_cols":44,"rows_kept":30,"cut":false,"hidden":false,"merged":[[29,8,29,23],[20,14,20,17],[20,19,20,21],[17,0,21,1],[18,2,20,4],[18,5,18,8],[18,9,18,23],[19,5,19,8],[19,9,19,13],[19,15,19,23],[20,5,20,8],[20,9,20,12],[27,7,27,23],[28,7,28,23],[8,13,8,23],[15,1,15,3],[15,6,15,23],[10,26,11,27],[10,28,11,32],[11,1,11,6],[11,7,11,24],[14,1,14,3],[14,6,14,8],[21,38,22,45],[16,38,17,43],[0,0,0,24],[9,7,9,12],[9,13,9,17],[9,19,9,23],[0,35,0,37],[1,27,2,28],[1,35,1,37],[4,27,5,28],[6,7,6,12],[6,13,6,23],[7,7,7,12],[7,13,7,23],[7,27,8,28],[8,7,8,12]]}
["変更契約に関する申出書",null,null,null,null,null,null,null,null,null,null,null,null,null,null,null,null,null,null,null,null,null,null,null,null,null,null,null,null,"契約区分",null,null,null,null,null,"入力箇所"]
[null,null,null,null,null,null,null,null,null,null,null,null,null,null,null,null,null,null,null,null,null,null,null,null,null,null,null,1,null,null,1,"工事",null,null,null,"選択箇所"]
[null,null,null,null,null,null,null,null,null,null,null,null,null,null,null,null,null,{"$f":"IF($AB$2=\"\",\"\",\"令和\")","v":"令和"},null,"年",null,"月",null,"日",null,null,null,null,null,null,2,"委託業務"]
[null,null,null,null,null,null,null,null,null,null,null,null,null,null,null,null,null,null,null,null,null,null,null,null,null,null,null,null,null,"発注機関"]
[null,{"$f":"'別紙１－③ (ＪＶ用)'!B5","v":"石狩振興局長　様"},null,null,null,null,null,null,null,null,null,null,null,null,null,null,null,null,null,null,null,null,null,null,null,null,null,10]
[null,null,null,null,null,null,null,null,null,null,null,null,null,null,null,null,null,null,null,null,null,null,null,null,null,null,null,null,null,null,null,null,null,null,null,null,null,null,null,"＜ファイル名用＞"]
[null,null,null,null,null,null,null,{"$f":"IF(AB8=2,\"ＪＶ名\",\"\")","v":"ＪＶ名"},null,null,null,null,null,{"$f":"'別紙１－③ (ＪＶ用)'!P7","v":0},null,null,null,null,null,null,null,null,null,null,null,null,null,null,null,"契約形態",null,null,null,null,null,null,null,null,null,null,null,"発注機関",{"$f":"VLOOKUP(AB5,'別紙１－③ (ＪＶ用)'!AR2:AW12,2)","v":"石狩振興局"},{"$f":"AB5","v":10}]
[null,null,null,null,null,null,null,"住所",null,null,null,null,null,{"$f":"'別紙１－③ (ＪＶ用)'!P8","v":0},null,null,null,null,null,null,null,null,null,null,null,null,null,{"$f":"'別紙１－③ (ＪＶ用)'!AD8","v":2},null,null,1,"単体",null,null,null,null,null,null,null,null,null,"当初契約日",{"$f":"MONTH(AC11)&\"月\"&DAY(AC11)&\"日\"","v":"1月0日"}]
[null,null,null,null,null,null,null,"商号又は名称",null,null,null,null,null,{"$f":"'別紙１－③ (ＪＶ用)'!P9","v":0},null,null,null,null,null,null,null,null,null,null,null,null,null,null,null,null,2,"ＪＶ",null,null,null,null,null,null,null,null,null,{"$f":"B15","v":"工事番号"},{"$f":"G15","v":0}]
[null,null,null,null,null,null,null,"代表者役職・氏名",null,null,null,null,null,{"$f":"'別紙１－③ (ＪＶ用)'!P10","v":0},null,null,null,null,null,{"$f":"'別紙１－③ (ＪＶ用)'!V10","v":0},null,null,null,null,null,"はじめに入力↓",null,null,null,null,null,null,null,null,null,null,null,null,null,null,null,{"$f":"IF(AB2=1,\"受注者\",\"受託者\")","v":"受注者"},{"$f":"IF(AB8=1,N9,N7)","v":0}]
[null,null,null,null,null,null,null,null,null,null,null,null,null,null,null,null,null,null,null,null,null,null,null,null,null,null,"当初\n契約日",null,null,null,null,null,null,null,null,null,null,null,null,null,null,"タイトル","変更契約に関する申出書"]
[null,{"$f":"AC11","v":"00:00:00"},null,null,null,null,null,{"$f":"\"に契約締結した次の\"&IF(AB2=1,AF2,AF3)&\"について、\"&\"第\"&AE13&\"回変更契約から\"","v":"に契約締結した次の工事について、第1回変更契約から"}]
["紙での契約を希望するので、申し出ます。",null,null,null,null,null,null,null,null,null,null,null,null,null,null,null,null,null,null,null,null,null,null,null,null,null,"設計変更回数",null,null,null,"1","←最後に入力"]
[]
["（",{"$f":"IF(AB2=1,\"工事番号\",\"業務番号\")","v":"工事番号"},null,null,"）","（",{"$f":"'別紙１－③ (ＪＶ用)'!H17","v":0},null,null,"）"]
[null,{"$f":"IF(AB2=1,\"工事名\",\"業務名\")","v":"工事名"},null,null,null,null,{"$f":"'別紙１－③ (ＪＶ用)'!H18","v":0},null,null,null,null,null,null,null,null,null,null,null,null,null,null,null,null,null,null,null,null,null,null,null,null,null,null,null,null,null,null,null,"全ての入力内容を確認後、ＰＤＦに変換のうえ、"]
[null,null,null,null,null,null,null,null,null,null,null,null,null,null,null,null,null,null,null,null,null,null,null,null,null,null,null,null,null,null,null,null,null,null,null,null,null,null,"入札契約課へ送付してください。"]
["連絡先"]
[null,null,"担当者",null,null,"（所属）",null,null,null,null,null,null,null,null,null,null,null,null,null,null,null,null,null,null,null,"当初契約時と連絡先が違う場合も想定されるので",null,null,null,null,null,null,null,null,null,null,null,null,"なお、←のＰＤＦ化をクリックすると、"]
[null,null,null,null,null,"（職・氏名）",null,null,null,null,null,null,null,null,"・",null,null,null,null,null,null,null,null,null,null,"お手数ですが、ご入力ください",null,null,null,null,null,null,null,null,null,null,null,null,"このエクセルシートが保存されている場所と同じ場所に"]
[null,null,null,null,null,"（電話番号）",null,null,null,null,null,null,null,"－",null,null,null,null,"－",null,null,null,null,null,null,null,null,null,null,null,null,null,null,null,null,null,null,null,{"$f":"\"「発注機関名_当初契約日_\"&B15&\"_契約者名_変更契約に係る申出書」\"","v":"「発注機関名_当初契約日_工事番号_契約者名_変更契約に係る申出書」"}]
[null,null,null,null,null,null,null,null,null,null,null,null,null,null,null,null,null,null,null,null,null,null,null,null,null,null,null,null,null,null,null,null,null,null,null,null,null,null,"をファイル名としたこの様式が、ＰＤＦで保存されます。"]
[]
[null,"（留意事項）",null,null,null,null,null,null,null,null,null,null,null,null,null,null,null,null,null,null,null,null,null,null,null,null,null,null,null,null,null,null,null,null,null,null,null,null,"（ＰＤＦの保存範囲は、Ａ～Ｙ列までです。）"]
[null,null,"※",{"$f":"\"この申出書は、\"&IF(AB2=1,\"工事監督員\",\"業務担当員\")&\"に変更契約に係る設計変更上申日を確認した上で、\"","v":"この申出書は、工事監督員に変更契約に係る設計変更上申日を確認した上で、"}]
[null,null,null,"各発注機関へ直接、提出してください。"]
[]
[null,null,null,"提 出 先",null,null,null,{"$f":"VLOOKUP(AB5,'別紙１－③ (ＪＶ用)'!AR2:AV12,2)&VLOOKUP(AB5,'別紙１－③ (ＪＶ用)'!AR2:AW12,6)","v":"石狩振興局"}]
[null,null,null,"電　　話",null,null,null,{"$f":"VLOOKUP(AB5,'別紙１－③ (ＪＶ用)'!AR2:AV12,5)","v":0}]
[null,null,null,"メールアドレス",null,null,null,null,{"$f":"VLOOKUP(AB5,'別紙１－③ (ＪＶ用)'!AR2:AV12,4)","v":0}]